bitfinex/quotes_SOLUSD_20251115
["timestamp","ask_amount","ask_price","bid_price","bid_amount"]
[1763177077480,0.67,143.31,143.27,1.74964767]
[1763177077659,2.41964767,143.33,143.28,1.89180924]
[1763177078048,0.67,143.32,143.28,1.89180924]
[1763177078352,0.67,143.32,143.28,2.58180924]
[1763177078561,2.41964767,143.32,143.28,0.69]
[1763177079468,0.67,143.32,143.29,0.14216157]
[1763177079970,0.67,143.32,143.29,0.83216157]
[1763177080569,2.41964767,143.33,143.29,0.83216157]
[1763177082466,2.41964767,143.32,143.27,2.43964767]
[1763177082660,1.74964767,143.3,143.25,1.84964767]
[1763177082976,1.74964767,143.29,143.26,0.14216157]
[1763177083459,2.43964767,143.29,143.25,0.92216157]
[1763177083860,0.69,143.29,143.25,2.67180924]
[1763177084272,0.69,143.29,143.26,2.57180924]
[1763177084655,2.43964767,143.31,143.26,2.57180924]
[1763177084854,0.69,143.3,143.26,2.57180924]
[1763177085066,0.69,143.3,143.26,2.42964767]
[1763177088976,2.43964767,143.3,143.26,0.68]
[1763177089277,1.74964767,143.29,143.25,0.92216157]
[1763177089491,2.43964767,143.29,143.25,0.92216157]
[1763177089658,0.69,143.29,143.25,2.67180924]
[1763177090071,0.69,143.29,143.25,1.99180924]
[1763177090263,2.43964767,143.31,143.27,0.14216157]
[1763177090465,1.74964767,143.31,143.27,0.14216157]
[1763177090666,0.69,143.3,143.27,0.14216157]
[1763177090864,2.43964767,143.3,143.26,0.68]
[1763177092364,1.74964767,143.3,143.26,0.68]
[1763177092578,0.69,143.29,143.26,0.68]
[1763177094978,1.74964767,143.3,143.26,0.68]
[1763177095178,2.43964767,143.3,143.26,0.68]
[1763177095984,0.69,143.3,143.27,0.14216157]
[1763177096360,104.3,143.35,143.27,0.14216157]
[1763177096568,104.3,143.35,143.28,0.68]
[1763177096569,2.43964767,143.32,143.28,0.68]
[1763177097681,1.74964767,143.3,143.26,0.14216157]
[1763177098282,0.69,143.29,143.26,0.82216157]
[1763177099285,2.43964767,143.29,143.26,0.14216157]
[1763177100089,0.69,143.28,143.25,23.4312]
[1763177100890,0.69,143.28,143.25,0.78]
[1763177101100,1.74964767,143.27,143.25,0.1]
[1763177101698,0.69,143.26,143.25,0.1]
[1763177103604,2.43964767,143.26,143.25,0.1]
[1763177107296,0.69,143.26,143.25,0.1]
[1763177107498,2.43964767,143.26,143.25,0.1]
[1763177109297,1.74964767,143.26,143.25,0.1]
[1763177109497,2.43964767,143.26,143.25,0.1]
[1763177109701,2.43964767,143.26,143.24,0.1]
[1763177109889,2.43964767,143.25,143.24,0.1]
[1763177113019,9.78882769,143.27,143.24,0.1]
[1763177113020,0.7,143.3,143.25,0.14216157]
[1763177113194,1.74964767,143.29,143.25,0.14216157]
[1763177113391,1.74964767,143.29,143.25,0.85216157]
[1763177113595,0.7,143.28,143.25,0.71]
[1763177113889,1.74964767,143.29,143.25,0.71]
[1763177114110,0.7,143.28,143.25,0.71]
[1763177114310,0.7,143.28,143.24,0.95216157]
[1763177114499,0.7,143.28,143.24,2.70180924]
[1763177114885,2.44964767,143.28,143.24,0.95216157]
[1763177115087,1.74964767,143.27,143.24,0.1]
[1763177115404,1.74964767,143.26,143.24,0.1]
[1763177115703,2.44964767,143.26,143.24,0.1]
[1763177115911,0.7,143.26,143.24,0.1]
[1763177116213,0.7,143.32,143.25,2.60180924]
[1763177116411,0.7,143.32,143.28,0.14216157]
[1763177116412,2.44964767,143.32,143.28,0.14216157]
[1763177116710,1.74964767,143.31,143.28,0.14216157]
[1763177116915,0.7,143.32,143.28,2.60180924]
[1763177117412,0.7,143.32,143.28,0.14216157]
[1763177117617,1.74964767,143.29,143.25,22.79336157]
[1763177118001,0.7,143.28,143.25,22.79336157]
[1763177118400,0.7,143.28,143.25,22.6512]
[1763177118705,0.7,143.28,143.24,2.70180924]
[1763177119486,0.7,143.28,143.24,0.24216157]
[1763177119487,2.44964767,143.28,143.24,0.24216157]
[1763177119692,2.44964767,143.28,143.24,0.95216157]
[1763177119999,0.7,143.28,143.24,2.70180924]
[1763177120313,1.74964767,143.29,143.24,2.70180924]
[1763177120519,0.7,143.28,143.24,2.70180924]
[1763177121412,1.74964767,143.29,143.25,0.71]
[1763177121602,0.7,143.29,143.25,2.60180924]
[1763177122621,2.44964767,143.33,143.29,0.14216157]
[1763177122806,0.7,143.33,143.29,2.60180924]
[1763177123612,0.7,143.34,143.3,2.45964767]
[1763177123920,0.7,143.33,143.3,2.45964767]
[1763177124719,0.7,143.33,143.3,0.71]
[1763177125418,0.7,143.33,143.29,0.14216157]
[1763177125620,0.7,143.33,143.3,1.74964767]
[1763177126125,0.7,143.33,143.29,1.89180924]
[1763177126318,0.7,143.33,143.29,2.60180924]
[1763177127226,0.7,143.33,143.27,0.14216157]
[1763177127227,1.74964767,143.31,143.27,0.14216157]
[1763177127712,0.7,143.3,143.27,0.14216157]
[1763177128223,0.7,143.3,143.26,0.85216157]
[1763177128921,2.44964767,143.3,143.26,0.14216157]
[1763177129310,0.7,143.29,143.26,0.14216157]
[1763177133016,0.7,143.29,143.26,0.85216157]
[1763177133594,22.6512,143.34,143.26,0.85216157]
[1763177133595,23.3512,143.34,143.26,0.85216157]
[1763177133795,2.7341486,143.32,143.28,2.7341486]
[1763177134322,2.7341486,143.32,143.29,0.71]
[1763177134717,3.4341486,143.31,143.26,0.71]
[1763177134920,3.4341486,143.31,143.26,3.58631017]
[1763177135117,2.7341486,143.32,143.27,2.7341486]
[1763177135421,2.7341486,143.32,143.27,3.4441486]
[1763177135604,3.4341486,143.32,143.28,0.71]
[1763177136401,2.7341486,143.33,143.28,3.58631017]
[1763177136612,0.7,143.33,143.28,3.58631017]
[1763177136814,3.4341486,143.33,143.29,0.71]
[1763177137129,3.4341486,143.33,143.29,0.85216157]
[1763177137320,0.7,143.33,143.29,3.58631017]
[1763177137631,3.4341486,143.33,143.29,0.85216157]
[1763177137924,0.7,143.33,143.29,0.85216157]
[1763177138116,3.4341486,143.33,143.29,0.85216157]
[1763177138833,0.7,143.33,143.29,3.4441486]
[1763177139128,3.4341486,143.33,143.29,3.4441486]
[1763177139721,3.4341486,143.33,143.29,0.71]
[1763177139927,2.7341486,143.33,143.3,0.71]
[1763177140239,2.7341486,143.34,143.3,0.71]
[1763177140408,3.4341486,143.34,143.3,0.71]
[1763177140728,2.7341486,143.34,143.3,0.85216157]
[1763177140930,3.4341486,143.34,143.3,0.85216157]
[1763177142227,107.0341486,143.35,143.3,3.58631017]
[1763177142439,107.7341486,143.35,143.31,0.85216157]
[1763177142942,0.66,143.4,143.34,0.14216157]
[1763177143112,0.66,143.39,143.35,2.87631017]
[1763177143313,0.66,143.39,143.35,3.56631017]
[1763177143529,2.7341486,143.4,143.35,3.56631017]
[1763177143530,2.7341486,143.4,143.36,0.69]
[1763177143833,0.66,143.4,143.36,3.4241486]
[1763177144329,0.66,143.43,143.38,2.7341486]
[1763177144541,0.66,143.43,143.39,0.69]
[1763177144542,2.7341486,143.43,143.39,0.69]
[1763177144730,0.66,143.42,143.39,0.69]
[1763177144922,107.0341486,143.44,143.39,0.83216157]
[1763177145105,2.7341486,143.45,143.4,2.87631017]
[1763177145307,3.3941486,143.46,143.4,2.87631017]
[1763177145508,0.66,143.46,143.42,0.14216157]
[1763177146012,0.66,143.46,143.42,0.83216157]
[1763177146834,3.3941486,143.46,143.42,0.83216157]
[1763177147223,0.66,143.45,143.42,0.83216157]
[1763177147819,2.7341486,143.46,143.42,0.83216157]
[1763177148018,107.2341486,143.48,143.42,0.83216157]
[1763177148019,0.86,143.48,143.44,2.87631017]
[1763177148219,0.2,143.48,143.44,2.87631017]
[1763177148427,0.2,143.48,143.45,0.69]
[1763177149109,0.2,143.48,143.44,2.87631017]
[1763177149413,3.5941486,143.48,143.44,0.83216157]
[1763177150810,3.3941486,143.47,143.42,0.83216157]
[1763177151324,0.66,143.46,143.42,0.83216157]
[1763177151524,3.3941486,143.46,143.42,0.83216157]
[1763177151719,26.2453486,143.48,143.43,2.87631017]
[1763177152149,26.2453486,143.48,143.44,0.69]
[1763177152442,25.5853486,143.48,143.44,0.69]
[1763177152652,26.2453486,143.48,143.44,0.69]
[1763177152816,23.5112,143.48,143.44,0.69]
[1763177153548,0.66,143.47,143.44,0.69]
[1763177153752,0.66,143.47,143.43,3.56631017]
[1763177153954,0.66,143.47,143.43,0.14216157]
[1763177154118,3.3941486,143.47,143.43,0.14216157]
[1763177154317,0.66,143.46,143.41,2.7341486]
[1763177154637,3.3941486,143.46,143.41,0.14216157]
[1763177154838,3.3941486,143.46,143.41,0.83216157]
[1763177155016,0.66,143.45,143.41,0.83216157]
[1763177155447,0.66,143.45,143.41,0.14216157]
[1763177155629,0.66,143.45,143.41,0.83216157]
[1763177155832,0.66,143.45,143.41,0.14216157]
[1763177156339,0.66,143.45,143.41,3.56631017]
[1763177158744,0.66,143.45,143.41,0.83216157]
[1763177159738,0.66,143.45,143.41,0.14216157]
[1763177160551,3.3941486,143.45,143.41,0.14216157]
[1763177160742,3.3941486,143.45,143.39,2.7341486]
[1763177161046,22.6512,143.47,143.39,2.7341486]
[1763177161047,3.3941486,143.44,143.39,0.14216157]
[1763177161249,0.66,143.44,143.39,0.14216157]
[1763177161543,3.3941486,143.43,143.39,0.14216157]
[1763177161750,2.7341486,143.41,143.37,0.14216157]
[1763177162050,2.7341486,143.41,143.37,0.83216157]
[1763177162251,3.3941486,143.41,143.37,0.83216157]
[1763177162450,0.66,143.4,143.37,0.83216157]
[1763177162754,0.66,143.43,143.37,3.56631017]
[1763177162931,2.7341486,143.42,143.37,3.56631017]
[1763177163130,2.7341486,143.42,143.38,0.69]
[1763177163354,3.3941486,143.42,143.38,0.69]
[1763177163875,3.3941486,143.44,143.39,2.87631017]
[1763177164029,3.3941486,143.44,143.4,0.69]
[1763177164231,0.66,143.44,143.4,3.4241486]
[1763177164626,0.66,143.44,143.4,2.7341486]
[1763177164830,0.66,143.44,143.4,3.4241486]
[1763177165140,3.3941486,143.44,143.4,0.69]
[1763177165726,2.7341486,143.42,143.36,23.3412]
[1763177165931,2.7341486,143.42,143.37,3.56631017]
[1763177166130,3.3941486,143.42,143.37,3.56631017]
[1763177166457,9.78882769,143.47,143.4,0.14216157]
[1763177166635,3.3941486,143.44,143.4,0.14216157]
[1763177167042,136.74002769,143.47,143.39,3.4241486]
[1763177167043,3.3941486,143.43,143.39,0.14216157]
[1763177167335,3.3941486,143.43,143.39,0.83216157]
[1763177171374,2.7341486,143.43,143.39,0.14216157]
[1763177171564,3.4341486,143.42,143.37,0.14216157]
[1763177171867,2.7341486,143.4,143.37,0.14216157]
[1763177172036,2.7341486,143.4,143.36,0.81216157]
[1763177172237,3.4341486,143.4,143.36,0.81216157]
[1763177172450,0.7,143.39,143.36,0.14216157]
[1763177172651,0.7,143.39,143.36,0.80216157]
[1763177173058,0.7,143.39,143.36,0.14216157]
[1763177173451,0.7,143.39,143.35,3.3941486]
[1763177173648,2.7341486,143.38,143.34,0.14216157]
[1763177174048,0.71,143.37,143.34,0.80216157]
[1763177174357,0.71,143.37,143.34,0.14216157]
[1763177174575,0.71,143.37,143.34,0.80216157]
[1763177174771,0.71,143.4,143.35,2.7341486]
[1763177174950,3.4441486,143.4,143.35,2.7341486]
[1763177175152,3.4441486,143.4,143.36,0.66]
[1763177175868,3.4441486,143.4,143.36,0.80216157]
[1763177176190,0.71,143.42,143.37,2.7341486]
[1763177176485,3.4441486,143.42,143.37,2.7341486]
[1763177176672,3.4441486,143.42,143.38,0.66]
[1763177177867,104.3,143.43,143.38,0.66]
[1763177177868,0.71,143.44,143.38,3.53631017]
[1763177178068,2.7341486,143.43,143.38,3.53631017]
[1763177178259,3.4441486,143.44,143.39,3.53631017]
[1763177178800,0.71,143.43,143.39,3.53631017]
[1763177179087,3.4441486,143.43,143.39,0.80216157]
[1763177180182,2.7341486,143.43,143.39,0.80216157]
[1763177180379,3.4441486,143.43,143.39,0.80216157]
[1763177181769,0.71,143.43,143.39,0.80216157]
[1763177181971,3.4441486,143.43,143.39,0.80216157]
[1763177182692,2.7341486,143.41,143.37,22.6512]
[1763177182988,3.4441486,143.4,143.35,3.53631017]
[1763177183162,0.71,143.39,143.36,0.66]
[1763177183794,3.4441486,143.4,143.36,0.66]
[1763177183988,0.71,143.4,143.36,0.66]
[1763177184180,3.4441486,143.4,143.36,0.66]
[1763177184693,22.6512,143.43,143.35,22.79336157]
[1763177184694,3.4441486,143.39,143.35,22.79336157]
[1763177184874,3.4441486,143.39,143.35,0.14216157]
[1763177185079,2.7341486,143.39,143.35,0.80216157]
[1763177185380,0.71,143.39,143.35,3.53631017]
[1763177185996,3.4441486,143.39,143.35,0.80216157]
[1763177187893,3.4441486,143.38,143.35,0.66]
[1763177188266,3.4441486,143.38,143.34,0.80216157]
[1763177188472,0.71,143.38,143.34,3.3941486]
[1763177188891,3.4441486,143.38,143.34,0.80216157]
[1763177189692,0.71,143.38,143.34,3.3941486]
[1763177189894,2.7341486,143.38,143.34,0.66]
[1763177190200,0.71,143.37,143.34,0.66]
[1763177190386,3.4441486,143.37,143.33,0.14216157]
[1763177190571,3.4441486,143.37,143.32,22.6512]
[1763177190770,2.7341486,143.35,143.3,2.7341486]
[1763177191003,2.7341486,143.34,143.29,3.3941486]
[1763177191173,2.7341486,143.34,143.3,0.14216157]
[1763177191372,2.7341486,143.36,143.3,0.14216157]
[1763177191373,3.4441486,143.33,143.3,0.14216157]
[1763177191594,3.4441486,143.33,143.29,0.80216157]
[1763177191897,0.71,143.33,143.29,0.80216157]
[1763177192080,2.7341486,143.33,143.29,0.14216157]
[1763177192280,0.71,143.32,143.29,0.14216157]
[1763177192898,3.4441486,143.34,143.29,3.53631017]
[1763177193500,0.71,143.33,143.29,3.53631017]
[1763177193997,3.4441486,143.33,143.29,0.80216157]
[1763177194194,3.4441486,143.33,143.29,3.53631017]
[1763177194776,3.4441486,143.33,143.29,0.80216157]
[1763177195090,3.4441486,143.33,143.21,0.1]
[1763177195091,1.74903043,143.3,143.24,0.1]
[1763177195298,1.74903043,143.28,143.24,0.90216157]
[1763177195690,2.45903043,143.28,143.24,0.90216157]
[1763177195890,2.45903043,143.27,143.24,0.1]
[1763177196201,1.74903043,143.25,143.24,0.1]
[1763177196402,2.45903043,143.25,143.24,0.1]
[1763177197803,13.99688855,143.25,143.24,0.1]
[1763177197979,2.45903043,143.25,143.24,0.1]
[1763177198617,0.71,143.25,143.24,0.1]
[1763177198984,2.45903043,143.25,143.24,0.1]
[1763177203386,1.74903043,143.25,143.24,0.1]
[1763177204309,1.74903043,143.26,143.24,0.1]
[1763177204505,2.44903043,143.26,143.24,0.1]
[1763177204705,1.74903043,143.26,143.24,0.1]
[1763177204924,0.7,143.32,143.26,0.14216157]
[1763177205123,0.7,143.32,143.28,0.14216157]
[1763177205124,1.74903043,143.32,143.28,0.14216157]
[1763177205418,1.74903043,143.33,143.28,1.891192]
[1763177205597,2.44903043,143.33,143.29,2.41903043]
[1763177206112,1.74903043,143.34,143.3,2.41903043]
[1763177206513,2.44903043,143.34,143.3,0.67]
[1763177206902,5.2540043,143.34,143.3,0.67]
[1763177208325,0.7,143.34,143.3,0.67]
[1763177208503,0.7,143.33,143.29,4.69616587]
[1763177208706,0.7,143.33,143.3,0.67]
[1763177209027,5.2540043,143.33,143.29,0.14216157]
[1763177209397,0.7,143.32,143.29,0.14216157]
[1763177209604,4.5540043,143.31,143.25,0.67]
[1763177209808,4.5540043,143.3,143.26,0.14216157]
[1763177210218,0.7,143.29,143.26,0.14216157]
[1763177211022,0.7,143.29,143.26,0.81216157]
[1763177211322,5.2540043,143.31,143.26,5.2240043]
[1763177211526,4.5540043,143.31,143.26,5.2240043]
[1763177211708,0.7,143.3,143.26,5.2240043]
[1763177211904,5.2540043,143.3,143.26,5.2240043]
[1763177212894,4.5540043,143.3,143.26,0.67]
[1763177213099,5.2540043,143.29,143.24,5.46616587]
[1763177213329,5.2540043,143.29,143.25,0.67]
[1763177213522,0.7,143.28,143.25,0.67]
[1763177213829,0.7,143.28,143.24,5.46616587]
[1763177214200,0.7,143.31,143.26,4.69616587]
[1763177214400,4.5540043,143.3,143.26,0.81216157]
[1763177214597,4.5540043,143.29,143.25,0.14216157]
[1763177214815,5.2540043,143.3,143.25,4.69616587]
[1763177215021,4.5540043,143.3,143.25,5.36616587]
[1763177215214,4.5540043,143.3,143.26,0.67]
[1763177215215,5.2540043,143.3,143.26,0.67]
[1763177215596,0.7,143.3,143.26,5.2240043]
[1763177216325,4.5540043,143.32,143.28,0.14216157]
[1763177216830,104.3,143.34,143.27,0.14216157]
[1763177216831,0.7,143.31,143.27,0.14216157]
[1763177217029,5.2540043,143.31,143.27,0.14216157]
[1763177217221,5.2540043,143.31,143.27,0.81216157]
[1763177217525,4.5540043,143.31,143.27,0.67]
[1763177217826,0.7,143.3,143.27,0.81216157]
[1763177218231,5.2540043,143.31,143.27,0.81216157]
[1763177220241,0.7,143.3,143.27,0.81216157]
[1763177221146,4.5540043,143.31,143.27,0.81216157]
[1763177221331,0.7,143.3,143.27,0.81216157]
[1763177222130,5.2540043,143.31,143.27,0.81216157]
[1763177225315,0.7,143.3,143.27,0.67]
[1763177227335,1.74958413,143.31,143.27,0.67]
[1763177227733,2.44958413,143.31,143.27,0.67]
[1763177228245,0.7,143.32,143.27,2.41958413]
[1763177228415,2.44958413,143.32,143.27,2.41958413]
[1763177228620,2.44958413,143.32,143.28,0.67]
[1763177228819,0.7,143.31,143.28,0.67]
[1763177229345,2.44958413,143.32,143.28,0.81216157]
[1763177230846,0.7,143.32,143.28,2.41958413]
[1763177231221,0.7,143.32,143.29,0.66]
[1763177231419,0.7,143.32,143.28,2.40958413]
[1763177232625,0.7,143.32,143.28,0.80216157]
[1763177233132,1.74958413,143.33,143.28,0.80216157]
[1763177233442,2.44958413,143.33,143.28,2.5517457]
[1763177233837,2.44958413,143.33,143.29,0.68]
[1763177234236,104.3,143.34,143.29,2.5717457]
[1763177234237,106.04958413,143.34,143.29,2.5717457]
[1763177234549,106.74958413,143.34,143.3,0.68]
[1763177234944,2.44958413,143.34,143.3,0.68]
[1763177235126,2.44958413,143.34,143.3,0.82216157]
[1763177236152,1.74958413,143.35,143.31,1.74958413]
[1763177236450,1.74958413,143.35,143.29,6.97884833]
[1763177236451,2.44958413,143.35,143.3,1.74958413]
[1763177236653,0.7,143.34,143.3,1.74958413]
[1763177237133,2.44958413,143.34,143.3,1.74958413]
[1763177237448,0.7,143.33,143.3,1.74958413]
[1763177237821,2.44958413,143.34,143.3,1.74958413]
[1763177238037,1.74958413,143.32,143.27,1.74958413]
[1763177238236,1.74958413,143.32,143.26,0.70216157]
[1763177238436,2.44958413,143.31,143.26,2.4517457]
[1763177239158,0.7,143.3,143.26,2.4517457]
[1763177239361,2.44958413,143.3,143.26,0.14216157]
[1763177239673,2.44958413,143.3,143.25,24.40078413]
[1763177239674,2.44958413,143.3,143.25,22.6512]
[1763177239839,0.7,143.29,143.25,23.2112]
[1763177240534,0.7,143.29,143.25,24.96078413]
[1763177241835,2.44958413,143.29,143.24,0.1]
[1763177242049,2.44958413,143.29,143.24,1.84958413]
[1763177242241,0.7,143.28,143.24,1.84958413]
[1763177242435,0.7,143.28,143.24,0.1]
[1763177242637,22.6512,143.32,143.24,0.1]
[1763177242638,2.44958413,143.3,143.26,1.74958413]
[1763177242860,114.08882769,143.35,143.28,1.74958413]
[1763177243160,0.7,143.34,143.3,1.74958413]
[1763177243565,0.7,143.34,143.3,2.30958413]
[1763177243860,0.7,143.34,143.3,1.74958413]
[1763177244067,0.7,143.34,143.29,0.14216157]
[1763177244958,0.7,143.34,143.29,0.70216157]
[1763177245477,2.44958413,143.34,143.28,0.56]
[1763177245644,1.74958413,143.33,143.28,2.4517457]
[1763177245846,2.44958413,143.33,143.28,2.4517457]
[1763177246156,0.7,143.33,143.29,2.30958413]
[1763177247866,22.6512,143.36,143.3,2.30958413]
[1763177248069,1.74958413,143.35,143.31,0.56]
[1763177248571,24.40078413,143.36,143.31,2.30958413]
[1763177248757,2.44958413,143.35,143.31,0.56]
[1763177249358,1.74958413,143.32,143.27,22.6512]
[1763177249674,2.44958413,143.31,143.27,23.2112]
[1763177250051,2.44958413,143.31,143.27,0.70216157]
[1763177250258,1.74958413,143.3,143.27,0.56]
[1763177251864,2.44958413,143.31,143.27,0.56]
[1763177252374,2.44958413,143.33,143.27,0.56]
[1763177252577,2.44958413,143.33,143.28,1.8917457]
[1763177253181,2.44958413,143.32,143.27,2.30958413]
[1763177253568,0.7,143.32,143.28,0.70216157]
[1763177254170,0.7,143.32,143.28,0.14216157]
[1763177254361,2.44958413,143.32,143.27,0.70216157]
[1763177254883,0.7,143.31,143.27,0.70216157]
[1763177255267,2.44958413,143.31,143.27,0.70216157]
[1763177256184,0.7,143.31,143.27,0.70216157]
[1763177257771,3.43341115,143.31,143.26,22.6512]
[1763177257972,3.43341115,143.31,143.26,23.2112]
[1763177258274,0.7,143.3,143.26,23.2112]
[1763177258582,3.43341115,143.31,143.27,0.56]
[1763177259083,0.7,143.3,143.26,25.38461115]
[1763177259287,0.7,143.3,143.26,23.2112]
[1763177259486,0.7,143.3,143.26,25.94461115]
[1763177261169,0.7,143.3,143.24,0.1]
[1763177261388,2.73341115,143.28,143.24,0.1]
[1763177261771,0.7,143.27,143.24,0.1]
[1763177263391,2.73341115,143.29,143.25,0.56]
[1763177263578,3.42341115,143.3,143.25,3.29341115]
[1763177264188,0.69,143.29,143.25,3.29341115]
[1763177264570,0.69,143.29,143.25,2.73341115]
[1763177265898,2.73341115,143.3,143.25,2.73341115]
[1763177266190,25.38461115,143.32,143.25,2.73341115]
[1763177266191,2.73341115,143.32,143.27,2.73341115]
[1763177266394,0.69,143.3,143.26,3.29341115]
[1763177267969,0.69,143.32,143.27,0.70216157]
[1763177268169,2.73341115,143.32,143.27,0.70216157]
[1763177268485,0.69,143.31,143.27,0.14216157]
[1763177270094,3.42341115,143.31,143.27,0.14216157]
[1763177270691,0.69,143.3,143.27,0.14216157]
[1763177270998,23.3412,143.35,143.29,2.87557272]
[1763177271295,0.69,143.34,143.3,2.73341115]
[1763177271693,2.73341115,143.35,143.31,0.56]
[1763177271893,0.69,143.36,143.32,2.73341115]
[1763177272098,0.69,143.35,143.31,3.43557272]
[1763177273192,0.69,143.35,143.32,3.29341115]
[1763177273575,0.69,143.35,143.32,2.73341115]
[1763177273774,0.69,143.35,143.31,2.87557272]
[1763177273978,104.3,143.39,143.31,3.43557272]
[1763177274274,2.73341115,143.36,143.31,2.87557272]
[1763177274600,2.73341115,143.35,143.3,0.14216157]
[1763177274990,3.42341115,143.34,143.3,0.14216157]
[1763177275698,2.73341115,143.34,143.3,0.14216157]
[1763177275906,0.69,143.33,143.3,0.14216157]
[1763177276095,104.3,143.39,143.31,2.73341115]
[1763177276402,2.73341115,143.35,143.3,10.41378396]
[1763177276788,0.69,143.34,143.3,10.41378396]
[1763177277177,0.69,143.34,143.31,2.73341115]
[1763177277776,0.69,143.34,143.3,3.43557272]
[1763177278405,0.69,143.34,143.3,2.87557272]
[1763177280807,0.69,143.34,143.31,2.73341115]
[1763177281310,0.69,143.34,143.3,3.43557272]
[1763177281495,0.69,143.34,143.3,2.87557272]
[1763177282105,0.69,143.34,143.3,0.70216157]
[1763177282297,0.69,143.34,143.3,2.87557272]
[1763177283109,2.73341115,143.38,143.33,2.73341115]
[1763177283315,0.69,143.37,143.33,2.73341115]
[1763177283610,0.69,143.37,143.33,3.29341115]
[1763177284306,0.69,143.38,143.34,3.29341115]
[1763177284516,0.69,143.38,143.34,2.73341115]
[1763177285300,0.69,143.38,143.34,3.43557272]
[1763177286191,0.69,143.4,143.36,2.73341115]
[1763177286437,0.69,143.4,143.37,2.73341115]
[1763177286709,0.69,143.4,143.37,3.29341115]
[1763177287292,0.69,143.4,143.37,2.73341115]
[1763177289100,0.69,143.4,143.37,0.14216157]
[1763177289311,0.69,143.4,143.35,22.6512]
[1763177289312,2.73341115,143.39,143.35,22.6512]
[1763177289512,2.73341115,143.39,143.34,2.87557272]
[1763177289698,3.42341115,143.38,143.34,0.14216157]
[1763177290016,3.42341115,143.38,143.34,22.79336157]
[1763177290197,2.73341115,143.39,143.34,26.08677272]
[1763177290401,0.65,143.38,143.34,26.08677272]
[1763177291112,0.65,143.38,143.35,2.73341115]
[1763177291593,0.65,143.38,143.34,26.08677272]
[1763177292502,0.65,143.38,143.34,25.52677272]
[1763177292701,0.7,143.41,143.37,2.73341115]
[1763177293199,0.7,143.41,143.37,3.29341115]
[1763177293811,0.7,143.41,143.38,2.87557272]
[1763177294316,9.98882769,143.48,143.39,2.73341115]
[1763177294317,0.7,143.42,143.39,2.73341115]
[1763177294488,0.7,143.42,143.38,2.87557272]
[1763177295414,0.7,143.42,143.38,3.43557272]
[1763177296115,0.7,143.42,143.38,10.40991341]
[1763177296700,105.2,143.47,143.42,0.14216157]
[1763177296902,0.2,143.47,143.43,2.73341115]
[1763177297105,0.9,143.47,143.43,2.73341115]
[1763177297308,0.9,143.47,143.44,2.73341115]
[1763177298596,0.7,143.46,143.43,2.87557272]
[1763177299397,0.2,143.47,143.44,3.29341115]
[1763177299599,0.9,143.47,143.43,3.43557272]
[1763177300028,0.7,143.46,143.42,22.6512]
[1763177300228,0.7,143.46,143.42,25.38461115]
[1763177300401,0.7,143.46,143.43,2.87557272]
[1763177301296,0.7,143.46,143.42,22.6512]
[1763177301497,0.7,143.46,143.42,25.38461115]
[1763177302003,0.2,143.47,143.44,2.73341115]
[1763177302004,0.9,143.47,143.44,2.73341115]
[1763177302209,0.7,143.46,143.44,2.73341115]
[1763177302401,0.2,143.47,143.44,2.73341115]
[1763177302712,0.9,143.47,143.43,2.87557272]
[1763177302921,0.9,143.47,143.43,0.14216157]
[1763177303110,0.7,143.46,143.43,0.14216157]
[1763177303312,0.7,143.46,143.42,25.38461115]
[1763177303696,2.73341115,143.45,143.41,0.14216157]
[1763177303902,23.3512,143.46,143.39,0.14216157]
[1763177304102,2.73341115,143.44,143.39,0.14216157]
[1763177304300,3.43341115,143.45,143.39,2.87557272]
[1763177304601,0.7,143.44,143.41,0.14216157]
[1763177304806,0.9,143.47,143.43,2.73341115]
[1763177305720,0.9,143.47,143.44,2.73341115]
[1763177307126,0.7,143.46,143.43,2.87557272]
[1763177307623,0.7,143.46,143.43,0.14216157]
[1763177307822,0.7,143.46,143.37,2.73341115]